[Event "The Schackveckan 2023: Göteborg open"]
[Site "Göteborgs schackcentrum, Vegagatan 20, Gothenburg, Sweden"]
[Date "2023.08.11"]
[Round "3.16"]
[White "Lindhe Nilsson, Filip"]
[Black "Al Saab, Ranny"]
[Result "1/2-1/2"]
[TimeControl "15 minutes + 5 seconds per move from move one (Round 1 - 4) / 90 minutes + 30 seconds per move from move one (Round 5 - 8)"]
[WhiteFideId "1779826"]
[BlackFideId "1768360"]
[WhiteElo "1818"]
[BlackElo "1598"]

1. e4 {[%clk 00:15:08]} {[%emt 00:00:02]} e5 {[%clk 00:15:10]} {[%emt
00:00:01]} 2. Nc3 {[%clk 00:15:11]} {[%emt 00:00:01]} Nc6 {[%clk 00:15:10]}
{[%emt 00:00:05]} 3. Bc4 {[%clk 00:15:14]} {[%emt 00:00:02]} Nf6 {[%clk
00:15:14]} {[%emt 00:00:02]} 4. d3 {[%clk 00:15:17]} {[%emt 00:00:01]} d6
{[%clk 00:15:09]} {[%emt 00:00:10]} 5. f4 {[%clk 00:15:19]} {[%emt 00:00:03]}
Bg4 {[%clk 00:14:47]} {[%emt 00:00:27]} 6. Nf3 {[%clk 00:15:08]} {[%emt
00:00:15]} Nd4 {[%clk 00:14:33]} {[%emt 00:00:20]} 7. Rf1 {[%clk 00:13:38]}
{[%emt 00:01:35]} Be7 {[%clk 00:13:20]} {[%emt 00:01:19]} 8. Ne2 {[%clk
00:12:40]} {[%emt 00:01:02]} Nxf3+ {[%clk 00:13:05]} {[%emt 00:00:21]} 9. gxf3
{[%clk 00:12:40]} {[%emt 00:00:05]} Bh5 {[%clk 00:12:15]} {[%emt 00:00:48]} 10.
Ng3 {[%clk 00:11:36]} {[%emt 00:01:15]} Qd7 {[%clk 00:11:27]} {[%emt 00:00:43]}
11. Be3 {[%clk 00:10:10]} {[%emt 00:01:41]} a6 {[%clk 00:10:19]} {[%emt
00:01:13]} 12. Qd2 {[%clk 00:09:37]} {[%emt 00:00:38]} exf4 {[%clk 00:09:29]}
{[%emt 00:00:56]} 13. Bxf4 {[%clk 00:09:33]} {[%emt 00:00:08]} Bg6 {[%clk
00:09:25]} {[%emt 00:00:08]} 14. O-O-O {[%clk 00:09:22]} {[%emt 00:00:18]}
O-O-O {[%clk 00:09:15]} {[%emt 00:00:15]} 15. Be3 {[%clk 00:08:26]} {[%emt
00:01:00]} d5 {[%clk 00:09:03]} {[%emt 00:00:18]} 16. Bb3 {[%clk 00:08:08]}
{[%emt 00:00:23]} dxe4 {[%clk 00:08:31]} {[%emt 00:00:37]} 17. fxe4 {[%clk
00:07:30]} {[%emt 00:00:43]} Bd6 {[%clk 00:08:12]} {[%emt 00:00:24]} 18. Qa5
{[%clk 00:06:35]} {[%emt 00:01:00]} Bxg3 {[%clk 00:07:02]} {[%emt 00:01:14]} 19.
hxg3 {[%clk 00:06:22]} {[%emt 00:00:17]} Ng4 {[%clk 00:06:19]} {[%emt
00:00:49]} 20. Bf4 {[%clk 00:05:37]} {[%emt 00:00:50]} Nf6 {[%clk 00:05:11]}
{[%emt 00:01:13]} 21. Bg5 {[%clk 00:04:50]} {[%emt 00:00:52]} Rde8 {[%clk
00:02:58]} {[%emt 00:02:18]} 22. Bxf6 {[%clk 00:04:51]} {[%emt 00:00:04]} gxf6
{[%clk 00:03:02]} {[%emt 00:00:01]} 23. Rxf6 {[%clk 00:04:54]} {[%emt
00:00:02]} Qg4 {[%clk 00:02:52]} {[%emt 00:00:15]} 24. Rdf1 {[%clk 00:03:39]}
{[%emt 00:01:21]} Qxg3 {[%clk 00:02:04]} {[%emt 00:00:53]} 25. Bxf7 {[%clk
00:02:50]} {[%emt 00:00:54]} Bxf7 {[%clk 00:02:05]} {[%emt 00:00:03]} 26. Rxf7
{[%clk 00:02:50]} {[%emt 00:00:05]} h5 {[%clk 00:02:04]} {[%emt 00:00:07]} 27.
R1f3 {[%clk 00:02:18]} {[%emt 00:00:37]} Qd6 {[%clk 00:01:24]} {[%emt
00:00:43]} 28. R3f6 {[%clk 00:02:04]} {[%emt 00:00:21]} Qg3 {[%clk 00:01:12]}
{[%emt 00:00:15]} 29. Rf4 {[%clk 00:01:29]} {[%emt 00:00:43]} Qg1+ {[%clk
00:00:56]} {[%emt 00:00:21]} 30. Kd2 {[%clk 00:01:29]} {[%emt 00:00:05]} Qb6
{[%clk 00:00:55]} {[%emt 00:00:03]} 31. Qxb6 {[%clk 00:01:28]} {[%emt
00:00:08]} cxb6 {[%clk 00:00:59]} {[%emt 00:00:02]} 32. Rh4 {[%clk 00:01:27]}
{[%emt 00:00:05]} Re5 {[%clk 00:00:48]} {[%emt 00:00:16]} 33. Rf5 {[%clk
00:01:30]} {[%emt 00:00:02]} Rxf5 34. exf5 {[%clk 00:01:34]} Kd7 {[%clk
00:00:54]} {[%emt 00:00:02]} 35. Ke3 {[%clk 00:01:38]} {[%emt 00:00:01]} Ke7
{[%clk 00:00:58]} {[%emt 00:00:01]} 36. Kf4 {[%clk 00:01:41]} {[%emt 00:00:02]}
Kf6 {[%clk 00:01:01]} {[%emt 00:00:03]} 37. d4 {[%clk 00:01:34]} {[%emt
00:00:11]} Rd8 {[%clk 00:00:45]} {[%emt 00:00:21]} 38. c3 {[%clk 00:01:28]}
{[%emt 00:00:11]} Rh8 {[%clk 00:00:49]} {[%emt 00:00:02]} 39. d5 {[%clk
00:00:51]} {[%emt 00:00:42]} b5 {[%clk 00:00:48]} {[%emt 00:00:06]} 40. b3
{[%clk 00:00:46]} {[%emt 00:00:10]} Rc8 {[%clk 00:00:36]} {[%emt 00:00:17]} 41.
Rh3 {[%clk 00:00:48]} {[%emt 00:00:02]} a5 {[%clk 00:00:19]} {[%emt 00:00:22]}
42. Ke4 {[%clk 00:00:39]} {[%emt 00:00:13]} Re8+ {[%clk 00:00:20]} {[%emt
00:00:05]} 43. Kd4 {[%clk 00:00:42]} {[%emt 00:00:01]} Kxf5 {[%clk 00:00:20]}
{[%emt 00:00:06]} 44. Rxh5+ {[%clk 00:00:46]} Kf6 {[%clk 00:00:21]} {[%emt
00:00:03]} 45. Rh3 {[%clk 00:00:41]} {[%emt 00:00:11]} Rc8 {[%clk 00:00:23]}
{[%emt 00:00:02]} 46. Re3 {[%clk 00:00:41]} {[%emt 00:00:06]} b6 {[%clk
00:00:24]} {[%emt 00:00:05]} 47. d6 {[%clk 00:00:41]} {[%emt 00:00:04]} Kf7
{[%clk 00:00:08]} {[%emt 00:00:21]} 48. Kd5 {[%clk 00:00:41]} {[%emt 00:00:06]}
Rc5+ {[%clk 00:00:11]} {[%emt 00:00:01]} 49. Kd4 {[%clk 00:00:40]} {[%emt
00:00:05]} Rc8 {[%clk 00:00:15]} {[%emt 00:00:02]} 50. c4 {[%clk 00:00:24]}
{[%emt 00:00:21]} bxc4 {[%emt 00:00:12]} 51. bxc4 {[%clk 00:00:26]} {[%emt
00:00:02]} Kf6 {[%clk 00:00:08]} {[%emt 00:00:06]} 52. Rb3 {[%clk 00:00:19]}
{[%emt 00:00:13]} Rc6 {[%clk 00:00:09]} 53. Kd5 {[%clk 00:00:22]} {[%emt
00:00:04]} Rc5+ {[%clk 00:00:13]} 54. Kd4 {[%clk 00:00:24]} {[%emt 00:00:03]}
Rc6 {[%clk 00:00:17]} {[%emt 00:00:02]} 55. Kd5 {[%clk 00:00:10]} {[%emt
00:00:18]} Rc5+ {[%clk 00:00:21]} {[%emt 00:00:01]} 56. Kd4 {[%clk 00:00:14]}
{[%emt 00:00:01]} Rc6 {[%clk 00:00:26]} 1/2-1/2

[Event "The Schackveckan 2023: Göteborg open"]
[Site "Göteborgs schackcentrum, Vegagatan 20, Gothenburg, Sweden"]
[Date "2023.08.11"]
[Round "3.17"]
[White "Wengholm, Anders"]
[Black "Bergholtz, Karl"]
[Result "1-0"]
[TimeControl "15 minutes + 5 seconds per move from move one (Round 1 - 4) / 90 minutes + 30 seconds per move from move one (Round 5 - 8)"]
[WhiteFideId "1704818"]
[BlackFideId "1756141"]
[WhiteElo "2155"]
[BlackElo "1521"]

1. Nf3 {[%clk 00:15:07]} {[%emt 00:00:02]} Nf6 {[%clk 00:15:08]} {[%emt
00:00:04]} 2. c4 {[%clk 00:15:11]} c5 {[%clk 00:15:12]} 3. Nc3 {[%clk
00:15:14]} {[%emt 00:00:03]} Nc6 {[%clk 00:15:15]} {[%emt 00:00:02]} 4. g3
{[%clk 00:15:17]} {[%emt 00:00:02]} g6 {[%clk 00:15:20]} 5. Bg2 {[%clk
00:15:21]} {[%emt 00:00:02]} Bg7 {[%clk 00:15:23]} {[%emt 00:00:01]} 6. d4
{[%clk 00:15:25]} cxd4 {[%clk 00:14:03]} {[%emt 00:01:25]} 7. Nxd4 {[%clk
00:15:28]} O-O {[%clk 00:14:06]} {[%emt 00:00:03]} 8. O-O {[%clk 00:15:31]}
{[%emt 00:00:02]} Qb6 {[%clk 00:13:48]} {[%emt 00:00:23]} 9. Nb3 {[%clk
00:15:21]} {[%emt 00:00:15]} d6 {[%clk 00:13:13]} {[%emt 00:00:39]} 10. Be3
{[%clk 00:15:24]} {[%emt 00:00:02]} Qc7 {[%clk 00:13:16]} {[%emt 00:00:02]} 11.
Rc1 {[%clk 00:15:22]} {[%emt 00:00:07]} a6 {[%clk 00:12:59]} {[%emt 00:00:22]}
12. Nd5 {[%clk 00:15:10]} {[%emt 00:00:17]} Nxd5 {[%clk 00:12:56]} {[%emt
00:00:08]} 13. cxd5 {[%clk 00:15:13]} {[%emt 00:00:02]} Bxb2 {[%clk 00:12:38]}
{[%emt 00:00:23]} 14. Rc2 {[%clk 00:15:18]} Bf5 {[%clk 00:12:03]} {[%emt
00:00:40]} 15. Rxb2 {[%clk 00:15:17]} {[%emt 00:00:06]} Ne5 {[%clk 00:12:05]}
{[%emt 00:00:03]} 16. Nd4 {[%clk 00:14:38]} {[%emt 00:00:44]} Qd7 {[%clk
00:11:45]} {[%emt 00:00:25]} 17. Nxf5 {[%clk 00:14:31]} {[%emt 00:00:13]} Qxf5
{[%clk 00:11:48]} 18. Qb1 {[%clk 00:14:29]} {[%emt 00:00:07]} b5 {[%clk
00:11:48]} {[%emt 00:00:05]} 19. Qxf5 {[%clk 00:14:24]} {[%emt 00:00:10]} gxf5
{[%clk 00:11:52]} {[%emt 00:00:02]} 20. Rc2 {[%clk 00:14:08]} {[%emt 00:00:21]}
Nc4 {[%clk 00:11:47]} {[%emt 00:00:09]} 21. Bg5 {[%clk 00:14:04]} {[%emt
00:00:09]} f6 {[%clk 00:11:46]} {[%emt 00:00:05]} 22. Bh6 {[%clk 00:13:51]}
{[%emt 00:00:19]} Rfc8 {[%clk 00:11:45]} {[%emt 00:00:06]} 23. Bh3 {[%clk
00:13:54]} {[%emt 00:00:02]} Rc5 {[%clk 00:11:38]} {[%emt 00:00:12]} 24. Bxf5
{[%clk 00:13:57]} {[%emt 00:00:03]} Kf7 {[%clk 00:11:27]} {[%emt 00:00:15]} 25.
Be6+ {[%clk 00:13:56]} {[%emt 00:00:05]} Kg6 {[%clk 00:11:31]} {[%emt
00:00:02]} 26. Bc1 {[%clk 00:13:55]} {[%emt 00:00:06]} a5 {[%clk 00:11:17]}
{[%emt 00:00:20]} 27. e4 {[%clk 00:13:52]} {[%emt 00:00:07]} b4 {[%clk
00:10:58]} {[%emt 00:00:24]} 28. f4 {[%clk 00:13:50]} {[%emt 00:00:06]} a4
{[%clk 00:10:50]} {[%emt 00:00:14]} 29. Rf3 {[%clk 00:13:45]} {[%emt 00:00:10]}
Rb8 {[%clk 00:10:45]} {[%emt 00:00:10]} 30. Bb2 {[%clk 00:13:08]} {[%emt
00:00:42]} Nxb2 {[%clk 00:08:40]} {[%emt 00:02:11]} 31. Rxb2 {[%clk 00:13:11]}
{[%emt 00:00:02]} a3 {[%clk 00:05:58]} {[%emt 00:02:46]} 32. Rxa3 {[%clk
00:11:35]} {[%emt 00:01:41]} bxa3 {[%clk 00:05:34]} {[%emt 00:00:29]} 33. Rxb8
{[%clk 00:11:38]} {[%emt 00:00:02]} Rc1+ {[%clk 00:05:35]} {[%emt 00:00:04]} 34.
Kg2 {[%clk 00:11:40]} {[%emt 00:00:03]} Rc2+ {[%clk 00:05:38]} {[%emt
00:00:01]} 35. Kh3 {[%clk 00:10:43]} {[%emt 00:01:03]} Rxa2 {[%clk 00:05:41]}
{[%emt 00:00:02]} 36. Rg8+ {[%clk 00:10:38]} {[%emt 00:00:10]} Kh6 {[%clk
00:05:44]} {[%emt 00:00:03]} 37. Ra8 {[%clk 00:10:33]} {[%emt 00:00:09]} Ra1
{[%clk 00:05:12]} {[%emt 00:00:37]} 38. Ra7 {[%clk 00:10:07]} {[%emt 00:00:30]}
a2 {[%clk 00:05:07]} {[%emt 00:00:11]} 39. Rxe7 {[%clk 00:09:13]} {[%emt
00:00:59]} Rh1 {[%clk 00:04:53]} {[%emt 00:00:19]} 40. Bf5 {[%clk 00:09:14]}
{[%emt 00:00:04]} a1=Q {[%clk 00:04:11]} {[%emt 00:00:47]} 41. Rxh7# {[%emt
00:00:02]} 1-0

[Event "The Schackveckan 2023: Göteborg open"]
[Site "Göteborgs schackcentrum, Vegagatan 20, Gothenburg, Sweden"]
[Date "2023.08.11"]
[Round "4.1"]
[White "Ustianovich, Nazar"]
[Black "Olsson, William"]
[Result "1-0"]
[TimeControl "15 minutes + 5 seconds per move from move one (Round 1 - 4) / 90 minutes + 30 seconds per move from move one (Round 5 - 8)"]
[WhiteTitle "FM"]
[BlackTitle "FM"]
[WhiteFideId "14109778"]
[BlackFideId "1741721"]
[WhiteElo "2314"]
[BlackElo "2400"]

1. Nf3 {[%clk 00:15:09]} d5 {[%clk 00:15:09]} {[%emt 00:00:01]} 2. e3 {[%clk
00:15:12]} {[%emt 00:00:02]} Nf6 {[%clk 00:15:09]} {[%emt 00:00:05]} 3. c4
{[%clk 00:15:16]} {[%emt 00:00:01]} c6 {[%clk 00:15:11]} {[%emt 00:00:02]} 4.
Nc3 {[%clk 00:15:19]} {[%emt 00:00:03]} e6 {[%clk 00:14:34]} {[%emt 00:00:43]}
5. b3 {[%clk 00:15:16]} {[%emt 00:00:08]} Nbd7 {[%clk 00:14:36]} {[%emt
00:00:02]} 6. Qc2 {[%clk 00:15:12]} {[%emt 00:00:10]} Bd6 {[%clk 00:14:38]}
{[%emt 00:00:02]} 7. Be2 {[%clk 00:15:07]} {[%emt 00:00:10]} O-O {[%clk
00:14:37]} {[%emt 00:00:06]} 8. Bb2 {[%clk 00:14:39]} {[%emt 00:00:32]} e5
{[%clk 00:14:40]} {[%emt 00:00:02]} 9. cxd5 {[%clk 00:14:40]} {[%emt 00:00:04]}
cxd5 {[%clk 00:14:44]} {[%emt 00:00:02]} 10. Nb5 {[%clk 00:14:43]} {[%emt
00:00:02]} Bb8 {[%clk 00:14:47]} {[%emt 00:00:01]} 11. Rc1 {[%clk 00:14:47]}
{[%emt 00:00:01]} e4 {[%clk 00:14:29]} {[%emt 00:00:23]} 12. Nfd4 {[%clk
00:14:37]} {[%emt 00:00:15]} a6 {[%clk 00:13:30]} {[%emt 00:01:05]} 13. Nc7
{[%clk 00:14:12]} {[%emt 00:00:30]} Bxc7 {[%clk 00:11:06]} {[%emt 00:02:29]} 14.
Qxc7 {[%clk 00:14:15]} {[%emt 00:00:02]} Qxc7 {[%clk 00:10:34]} {[%emt
00:00:37]} 15. Rxc7 {[%clk 00:14:18]} {[%emt 00:00:02]} Ne5 {[%clk 00:10:27]}
{[%emt 00:00:11]} 16. O-O {[%clk 00:13:36]} {[%emt 00:00:47]} b5 {[%clk
00:09:11]} {[%emt 00:01:22]} 17. Nxb5 {[%clk 00:09:44]} {[%emt 00:03:57]} axb5
{[%clk 00:07:22]} {[%emt 00:01:54]} 18. Bxe5 {[%clk 00:09:47]} {[%emt
00:00:02]} Rxa2 {[%clk 00:07:14]} {[%emt 00:00:12]} 19. Bc3 {[%clk 00:06:38]}
{[%emt 00:03:15]} Be6 {[%clk 00:04:44]} {[%emt 00:02:35]} 20. Bxb5 {[%clk
00:06:09]} {[%emt 00:00:35]} d4 {[%clk 00:04:31]} {[%emt 00:00:17]} 21. Bxd4
{[%clk 00:05:36]} {[%emt 00:00:38]} Bxb3 {[%clk 00:04:32]} {[%emt 00:00:05]} 22.
Bxf6 {[%clk 00:03:51]} {[%emt 00:01:49]} gxf6 {[%clk 00:04:33]} {[%emt
00:00:04]} 23. d4 {[%clk 00:03:52]} {[%emt 00:00:04]} exd3 {[%clk 00:04:11]}
{[%emt 00:00:27]} 24. Bxd3 {[%clk 00:03:55]} {[%emt 00:00:02]} Rd8 {[%clk
00:04:15]} 25. Bc4 {[%clk 00:03:55]} {[%emt 00:00:05]} Bxc4 {[%clk 00:03:16]}
{[%emt 00:01:06]} 26. Rxc4 {[%clk 00:03:58]} Kg7 {[%clk 00:03:13]} {[%emt
00:00:07]} 27. Rg4+ {[%clk 00:04:02]} {[%emt 00:00:02]} Kh6 {[%clk 00:03:07]}
{[%emt 00:00:11]} 28. g3 {[%clk 00:03:51]} {[%emt 00:00:16]} f5 {[%clk
00:03:10]} {[%emt 00:00:02]} 29. Rf4 {[%clk 00:03:50]} {[%emt 00:00:06]} Kg6
{[%clk 00:02:27]} {[%emt 00:00:48]} 30. Rb1 {[%clk 00:03:51]} {[%emt 00:00:03]}
Ra5 {[%clk 00:02:09]} {[%emt 00:00:24]} 31. Rb6+ {[%clk 00:03:39]} {[%emt
00:00:16]} f6 {[%clk 00:02:13]} {[%emt 00:00:02]} 32. Rc4 {[%clk 00:02:38]}
{[%emt 00:01:06]} Rd1+ {[%clk 00:00:53]} {[%emt 00:01:25]} 33. Kg2 {[%clk
00:02:40]} {[%emt 00:00:02]} Rd2 {[%clk 00:00:56]} {[%emt 00:00:02]} 34. Rb7
{[%clk 00:01:35]} {[%emt 00:01:10]} Raa2 {[%clk 00:00:50]} {[%emt 00:00:12]} 35.
Rf4 {[%clk 00:01:38]} {[%emt 00:00:02]} Re2 {[%clk 00:00:51]} {[%emt 00:00:04]}
36. Re7 {[%clk 00:01:00]} {[%emt 00:00:43]} Rab2 {[%clk 00:00:42]} {[%emt
00:00:14]} 37. Rf3 {[%clk 00:00:47]} {[%emt 00:00:18]} h5 {[%clk 00:00:25]}
{[%emt 00:00:22]} 38. Ra7 {[%clk 00:00:43]} {[%emt 00:00:05]} Rb4 {[%clk
00:00:22]} {[%emt 00:00:11]} 39. Ra5 {[%clk 00:00:42]} {[%emt 00:00:06]} 1-0

[Event "The Schackveckan 2023: Göteborg open"]
[Site "Göteborgs schackcentrum, Vegagatan 20, Gothenburg, Sweden"]
[Date "2023.08.11"]
[Round "4.2"]
[White "Harila, Per"]
[Black "Bjorklund, Thomas"]
[Result "0-1"]
[TimeControl "15 minutes + 5 seconds per move from move one (Round 1 - 4) / 90 minutes + 30 seconds per move from move one (Round 5 - 8)"]
[WhiteFideId "1707248"]
[BlackFideId "1724576"]
[WhiteElo "2016"]
[BlackElo "2139"]

1. d4 {[%clk 00:15:08]} {[%emt 00:00:02]} d5 {[%clk 00:15:09]} {[%emt
00:00:02]} 2. c4 {[%clk 00:15:11]} {[%emt 00:00:01]} e6 {[%clk 00:15:13]}
{[%emt 00:00:02]} 3. Nc3 {[%clk 00:15:15]} Nf6 {[%clk 00:15:17]} {[%emt
00:00:01]} 4. cxd5 {[%clk 00:15:18]} {[%emt 00:00:01]} exd5 {[%clk 00:15:20]}
{[%emt 00:00:02]} 5. Bf4 {[%clk 00:14:46]} {[%emt 00:00:37]} Bd6 {[%clk
00:15:18]} {[%emt 00:00:07]} 6. Bg5 {[%clk 00:14:01]} {[%emt 00:00:50]} Be7
{[%clk 00:15:18]} {[%emt 00:00:06]} 7. e3 {[%emt 00:00:10]} Bf5 {[%clk
00:14:50]} {[%emt 00:00:31]} 8. Qb3 {[%clk 00:13:08]} {[%emt 00:00:54]} O-O
{[%clk 00:13:57]} {[%emt 00:00:59]} 9. Qxb7 {[%clk 00:12:57]} {[%emt 00:00:16]}
Nbd7 {[%clk 00:13:58]} {[%emt 00:00:04]} 10. Nf3 {[%clk 00:10:47]} {[%emt
00:02:14]} Rb8 {[%clk 00:13:54]} {[%emt 00:00:10]} 11. Qxa7 {[%clk 00:10:45]}
{[%emt 00:00:07]} Rxb2 {[%clk 00:13:47]} {[%emt 00:00:13]} 12. Rc1 {[%clk
00:10:19]} {[%emt 00:00:31]} Ne4 {[%clk 00:12:15]} {[%emt 00:01:36]} 13. Bxe7
{[%clk 00:09:55]} {[%emt 00:00:29]} Qxe7 {[%clk 00:12:03]} {[%emt 00:00:17]} 14.
Nxe4 {[%clk 00:08:27]} {[%emt 00:01:33]} dxe4 {[%clk 00:11:17]} {[%emt
00:00:51]} 15. Nd2 {[%clk 00:07:26]} {[%emt 00:01:06]} Qb4 {[%clk 00:10:39]}
{[%emt 00:00:43]} 16. Rd1 {[%clk 00:07:29]} {[%emt 00:00:02]} Bg4 {[%clk
00:10:18]} {[%emt 00:00:25]} 17. Be2 {[%clk 00:07:16]} {[%emt 00:00:19]} Bxe2
{[%clk 00:10:21]} {[%emt 00:00:02]} 18. Kxe2 {[%clk 00:07:18]} {[%emt
00:00:03]} Nb6 {[%clk 00:10:08]} {[%emt 00:00:18]} 19. a3 {[%clk 00:06:58]}
{[%emt 00:00:26]} Qc3 {[%clk 00:10:09]} {[%emt 00:00:02]} 0-1

[Event "The Schackveckan 2023: Göteborg open"]
[Site "Göteborgs schackcentrum, Vegagatan 20, Gothenburg, Sweden"]
[Date "2023.08.11"]
[Round "4.3"]
[White "Yang, Mandi"]
[Black "Eriksson, Kristian"]
[Result "1/2-1/2"]
[TimeControl "15 minutes + 5 seconds per move from move one (Round 1 - 4) / 90 minutes + 30 seconds per move from move one (Round 5 - 8)"]
[WhiteFideId "1774778"]
[BlackFideId "1705172"]
[WhiteElo "1457"]
[BlackElo "2057"]

1. e4 {[%clk 00:15:09]} e5 {[%clk 00:15:06]} {[%emt 00:00:05]} 2. Nf3 {[%clk
00:15:13]} {[%emt 00:00:01]} Nc6 {[%clk 00:15:08]} {[%emt 00:00:02]} 3. c3
{[%clk 00:15:17]} {[%emt 00:00:01]} Nf6 {[%clk 00:15:04]} {[%emt 00:00:09]} 4.
d4 {[%clk 00:15:20]} {[%emt 00:00:02]} Nxe4 {[%clk 00:15:01]} {[%emt 00:00:08]}
5. d5 {[%clk 00:15:23]} {[%emt 00:00:02]} Bc5 {[%clk 00:15:02]} {[%emt
00:00:04]} 6. dxc6 {[%clk 00:15:24]} {[%emt 00:00:05]} Bxf2+ {[%clk 00:15:00]}
{[%emt 00:00:06]} 7. Ke2 {[%clk 00:15:26]} {[%emt 00:00:03]} Bb6 {[%clk
00:14:05]} {[%emt 00:01:00]} 8. Qd5 {[%clk 00:15:22]} {[%emt 00:00:09]} Nf2
{[%clk 00:14:01]} {[%emt 00:00:09]} 9. Rg1 {[%clk 00:15:19]} {[%emt 00:00:08]}
O-O {[%clk 00:12:23]} {[%emt 00:01:44]} 10. cxb7 {[%clk 00:15:23]} {[%emt
00:00:02]} Bxb7 {[%clk 00:12:19]} {[%emt 00:00:08]} 11. Qxb7 {[%clk 00:15:26]}
e4 {[%clk 00:12:16]} {[%emt 00:00:09]} 12. Be3 {[%clk 00:13:24]} {[%emt
00:02:06]} Bxe3 {[%clk 00:10:03]} {[%emt 00:02:19]} 13. Kxe3 {[%clk 00:13:27]}
{[%emt 00:00:02]} Rb8 {[%clk 00:09:02]} {[%emt 00:01:06]} 14. Qd5 {[%clk
00:09:33]} {[%emt 00:03:58]} Ng4+ {[%clk 00:08:41]} {[%emt 00:00:26]} 15. Kf4
{[%clk 00:07:47]} {[%emt 00:01:53]} Nf6 {[%clk 00:07:50]} {[%emt 00:00:55]} 16.
Qg5 {[%clk 00:07:10]} {[%emt 00:00:41]} 1/2-1/2

[Event "The Schackveckan 2023: Göteborg open"]
[Site "Göteborgs schackcentrum, Vegagatan 20, Gothenburg, Sweden"]
[Date "2023.08.11"]
[Round "4.4"]
[White "Hector, Jonny"]
[Black "Sandberg, Lucas"]
[Result "1-0"]
[TimeControl "15 minutes + 5 seconds per move from move one (Round 1 - 4) / 90 minutes + 30 seconds per move from move one (Round 5 - 8)"]
[WhiteTitle "GM"]
[WhiteFideId "1700090"]
[BlackFideId "1773712"]
[WhiteElo "2466"]
[BlackElo "1311"]

1. Nc3 {[%clk 00:15:06]} {[%emt 00:00:03]} d5 {[%clk 00:15:07]} {[%emt
00:00:03]} 2. d4 {[%clk 00:15:08]} {[%emt 00:00:02]} Nf6 {[%clk 00:15:11]}
{[%emt 00:00:04]} 3. Bg5 {[%clk 00:15:11]} e6 {[%clk 00:15:06]} {[%emt
00:00:11]} 4. e4 {[%clk 00:15:13]} {[%emt 00:00:02]} dxe4 {[%clk 00:15:08]}
{[%emt 00:00:04]} 5. Nxe4 {[%clk 00:15:16]} {[%emt 00:00:01]} Be7 {[%clk
00:15:12]} {[%emt 00:00:02]} 6. Bxf6 {[%clk 00:15:17]} {[%emt 00:00:02]} Bxf6
{[%clk 00:15:16]} {[%emt 00:00:02]} 7. Nf3 {[%clk 00:15:18]} {[%emt 00:00:03]}
O-O {[%clk 00:14:57]} {[%emt 00:00:25]} 8. c3 {[%clk 00:15:21]} b6 {[%clk
00:14:45]} {[%emt 00:00:18]} 9. Bd3 {[%clk 00:15:06]} {[%emt 00:00:20]} Bb7
{[%clk 00:14:47]} {[%emt 00:00:04]} 10. Qc2 {[%clk 00:15:01]} {[%emt 00:00:09]}
Nd7 {[%clk 00:14:39]} {[%emt 00:00:14]} 11. h4 {[%clk 00:14:48]} {[%emt
00:00:16]} h6 {[%clk 00:13:58]} {[%emt 00:00:46]} 12. g4 {[%clk 00:14:34]}
{[%emt 00:00:19]} Be7 {[%clk 00:13:09]} {[%emt 00:00:56]} 13. g5 {[%clk
00:14:32]} {[%emt 00:00:05]} h5 {[%clk 00:13:12]} {[%emt 00:00:03]} 14. O-O-O
{[%clk 00:14:19]} {[%emt 00:00:18]} Qc8 {[%clk 00:12:33]} {[%emt 00:00:44]} 15.
Qe2 {[%clk 00:13:11]} {[%emt 00:01:13]} c5 {[%clk 00:11:22]} {[%emt 00:01:17]}
16. Ne5 {[%clk 00:12:23]} {[%emt 00:00:52]} g6 {[%clk 00:09:28]} {[%emt
00:01:59]} 17. Rhg1 {[%clk 00:11:30]} {[%emt 00:00:58]} cxd4 {[%clk 00:08:48]}
{[%emt 00:00:46]} 18. Nxd7 {[%clk 00:11:02]} {[%emt 00:00:32]} Qxd7 {[%emt
00:00:04]} 19. Nf6+ {[%clk 00:10:52]} {[%emt 00:00:13]} Bxf6 {[%clk 00:08:52]}
{[%emt 00:00:05]} 20. gxf6 {[%clk 00:10:54]} Qd5 {[%clk 00:08:08]} {[%emt
00:00:50]} 21. Qd2 {[%clk 00:07:33]} {[%emt 00:03:25]} Qe5 {[%clk 00:06:11]}
{[%emt 00:02:03]} 22. Bxg6 {[%clk 00:06:10]} {[%emt 00:01:27]} fxg6 {[%clk
00:06:15]} {[%emt 00:00:02]} 23. Rxg6+ {[%clk 00:06:09]} {[%emt 00:00:05]} Kf7
{[%clk 00:06:19]} {[%emt 00:00:02]} 24. Rg7+ {[%clk 00:06:08]} {[%emt
00:00:05]} Kxf6 {[%emt 00:00:08]} 25. Qh6+ {[%clk 00:06:08]} 1-0